bitfinex/quotes_SOLUSD_20250708
["timestamp","ask_amount","ask_price","bid_price","bid_amount"]
[1751999377972,33.46,152.29,152.27,7.32292589]
[1751999378265,33.46,152.29,152.26,3.71037225]
[1751999378466,33.46,152.29,152.27,7.32273401]
[1751999378668,33.46,152.29,152.26,3.71037225]
[1751999378868,33.46,152.29,152.27,7.3231101]
[1751999379169,33.46,152.29,152.26,3.71037225]
[1751999379368,33.46,152.29,152.27,7.35421419]
[1751999379675,33.46,152.29,152.27,0.03]
[1751999389666,33.46,152.29,152.27,3.74037225]
[1751999391881,33.46,152.29,152.28,7.33301536]
[1751999401268,33.46,152.29,152.27,6.59713529]
[1751999401470,33.46,152.29,152.27,10.30750754]
[1751999402187,33.46,152.29,152.28,3.71037225]
[1751999402383,10.27362493,152.37,152.28,3.71037225]
[1751999402681,155.401,152.38,152.34,3.71037225]
[1751999402890,33.5,152.35,152.34,3.71037225]
[1751999403267,0.06,152.35,152.34,3.71037225]
[1751999403468,33.5,152.35,152.34,3.71037225]
[1751999404590,0.06,152.35,152.34,10.27463639]
[1751999404974,0.06,152.35,152.34,6.56426414]
[1751999405176,33.5,152.35,152.34,10.27463639]
[1751999405795,0.06,152.35,152.34,10.27463639]
[1751999407672,0.06,152.35,152.34,15.15614044]
[1751999408294,0.06,152.35,152.34,10.27463639]
[1751999408492,0.06,152.35,152.34,15.15352119]
[1751999408692,0.06,152.35,152.34,10.27463639]
[1751999409086,0.06,152.35,152.34,6.56426414]
[1751999409393,0.06,152.35,152.34,10.27463639]
[1751999409784,0.06,152.35,152.34,6.56426414]
[1751999409980,0.06,152.35,152.34,10.27463639]
[1751999415310,0.06,152.35,152.34,6.56426414]
[1751999415521,0.06,152.35,152.29,6.1408]
[1751999415698,0.06,152.35,152.33,3.71037225]
[1751999415891,0.06,152.35,152.34,3.71037225]
[1751999418420,0.06,152.35,152.3,6.56598818]
[1751999418609,0.06,152.35,152.34,3.71037225]
[1751999418803,0.06,152.35,152.33,3.71037225]
[1751999419295,0.06,152.35,152.34,3.71037225]
[1751999420816,0.06,152.35,152.33,3.71037225]
[1751999421222,33.48,152.35,152.3,6.56573835]
[1751999421399,37.19037225,152.35,152.3,6.56573835]
[1751999421605,33.48,152.35,152.3,10.2761106]
[1751999421809,33.48,152.35,152.32,3.71037225]
[1751999422617,33.48,152.35,152.34,3.71037225]
[1751999422830,0.06,152.35,152.34,3.71037225]
[1751999424415,0.06,152.35,152.34,10.27463639]
[1751999424787,0.06,152.35,152.34,12.35915986]
[1751999426613,0.06,152.35,152.33,5.79489572]
[1751999427294,0.06,152.35,152.29,6.56641933]
[1751999427498,0.06,152.35,152.31,5.79489572]
[1751999427499,5.85489572,152.35,152.31,5.79489572]
[1751999427889,0.06,152.35,152.31,5.79489572]
[1751999428094,5.85489572,152.35,152.31,5.79489572]
[1751999428724,0.06,152.35,152.32,5.79489572]
[1751999430713,0.06,152.35,152.28,0.03]
[1751999430714,40.78909572,152.34,152.28,0.03]
[1751999430920,40.78909572,152.34,152.29,5.79489572]
[1751999430921,5.79489572,152.33,152.29,5.79489572]
[1751999431114,34.9942,152.34,152.28,4.90569713]
[1751999431115,5.79489572,152.32,152.28,5.82489572]
[1751999431322,33.42,152.31,152.28,5.82489572]
[1751999432021,33.42,152.31,152.28,12.3915251]
[1751999432408,33.42,152.31,152.29,5.79489572]
[1751999433832,33.42,152.31,152.3,5.79489572]
[1751999434333,33.42,152.31,152.28,0.03]
[1751999434635,33.42,152.31,152.3,5.79489572]
[1751999434998,33.42,152.31,152.29,5.79489572]
[1751999436733,33.42,152.31,152.29,12.36130599]
[1751999438042,33.42,152.31,152.29,5.79489572]
[1751999440249,33.42,152.31,152.28,6.59673633]
[1751999440444,33.42,152.31,152.29,5.79489572]
[1751999443044,33.42,152.31,152.28,6.59673633]
[1751999443346,33.42,152.31,152.29,5.79489572]
[1751999445027,33.42,152.31,152.29,12.36127626]
[1751999447940,33.42,152.31,152.29,5.79489572]
[1751999448138,33.42,152.31,152.28,0.03]
[1751999448339,33.42,152.31,152.29,5.79489572]
[1751999449061,33.42,152.31,152.29,3.71191648]
[1751999451155,39.98558172,152.31,152.28,0.03]
[1751999451451,3.71191648,152.3,152.28,0.03]
[1751999451659,39.98558172,152.31,152.28,0.03]
[1751999451660,37.11191648,152.29,152.28,0.03]
[1751999452245,64.27680781,152.29,152.28,0.03]
[1751999452952,66.36899168,152.29,152.28,0.03]
[1751999454327,66.36899168,152.29,152.27,0.03]
[1751999454328,172.23807235,152.28,152.27,0.03]
[1751999455331,178.80492288,152.28,152.27,0.03]
[1751999456331,44.64964886,152.25,152.24,0.03]
[1751999456533,84.15807235,152.25,152.24,0.03]
[1751999456948,90.56737235,152.25,152.24,0.03]
[1751999457654,97.13551684,152.25,152.24,0.03]
[1751999458230,98.80001684,152.25,152.24,0.03]
[1751999460331,104.60411719,152.25,152.24,0.03]
[1751999460531,98.80001684,152.25,152.24,0.03]
[1751999461640,104.60411719,152.25,152.24,0.03]
[1751999462744,98.80001684,152.25,152.24,0.03]
[1751999462945,92.99591649,152.25,152.24,0.03]
[1751999463246,98.80001684,152.25,152.24,0.03]
[1751999464058,92.99591649,152.25,152.24,0.03]
[1751999464261,98.80001684,152.25,152.24,0.03]
[1751999464435,92.99591649,152.25,152.24,0.03]
[1751999464635,98.5156937,152.25,152.24,0.03]
[1751999464860,98.80001684,152.25,152.24,0.03]
[1751999465055,92.71159335,152.25,152.24,0.03]
[1751999465248,98.5156937,152.25,152.24,0.03]
[1751999465454,33.46860035,152.25,152.24,0.03]
[1751999465763,33.42,152.25,152.24,0.03]
[1751999466264,39.22410035,152.25,152.24,0.03]
[1751999467561,33.42,152.25,152.24,0.03]
[1751999468166,39.98814449,152.25,152.24,0.03]
[1751999468371,33.42,152.25,152.24,0.03]
[1751999469078,39.22410035,152.25,152.24,0.03]
[1751999470362,45.79224484,152.25,152.24,0.03]
[1751999471300,64.72621684,152.25,152.24,0.03]
[1751999471971,84.92211649,152.25,152.24,0.03]
[1751999472148,90.72621684,152.25,152.24,0.03]
[1751999472646,96.53031719,152.25,152.24,0.03]
[1751999472841,90.72621684,152.25,152.24,0.03]
[1751999478083,90.4418937,152.25,152.24,0.03]
[1751999478370,57.0218937,152.25,152.24,0.03]
[1751999478566,84.63779335,152.25,152.24,0.03]
[1751999478800,57.0218937,152.25,152.24,0.03]
[1751999478975,90.4418937,152.25,152.24,0.03]
[1751999479565,90.72621684,152.25,152.24,0.03]
[1751999481568,57.0218937,152.25,152.24,0.03]
[1751999481897,0.06,152.27,152.24,5.83410035]
[1751999482052,0.06,152.27,152.26,5.80410035]
[1751999482254,33.48,152.27,152.26,5.80410035]
[1751999482452,33.48,152.27,152.25,5.80410035]
[1751999483052,0.06,152.27,152.25,5.80410035]
[1751999483254,33.42,152.26,152.25,5.80410035]
[1751999484175,0.06,152.27,152.25,5.80410035]
[1751999484381,33.42,152.26,152.25,5.80410035]
[1751999484588,33.42,152.26,152.24,0.03]
[1751999485168,33.42,152.26,152.24,5.83410035]
[1751999485563,33.42,152.26,152.24,12.40266056]
[1751999486089,33.42,152.26,152.24,5.83410035]
[1751999486377,33.42,152.26,152.24,12.40262841]
[1751999486683,0.06,152.27,152.24,12.40262841]
[1751999486868,33.42,152.26,152.24,12.40262841]
[1751999487071,33.42,152.26,152.24,0.03]
[1751999487391,33.42,152.26,152.24,5.83410035]
[1751999488087,39.22410035,152.26,152.24,0.03]
[1751999488292,31.0218937,152.25,152.24,0.03]
[1751999495062,5.80410035,152.25,152.24,0.03]
[1751999495499,31.0218937,152.25,152.24,0.03]
[1751999495994,31.30621684,152.25,152.24,0.03]
[1751999497561,37.11031719,152.25,152.24,0.03]
[1751999497761,63.11031719,152.25,152.24,0.03]
[1751999499469,27.5113,152.22,152.21,0.03]
[1751999499781,66.73540035,152.22,152.21,0.03]
[1751999500882,73.30483931,152.22,152.21,0.03]
[1751999501064,58.81881131,152.22,152.21,0.03]
[1751999501265,90.44318817,152.22,152.21,0.03]
[1751999502572,147.5,152.24,152.21,0.03]
[1751999502897,18.64964886,152.26,152.23,5.80410035]
[1751999503194,39.22410035,152.25,152.21,5.83410035]
[1751999503985,33.42,152.24,152.22,5.80410035]
[1751999504179,57.02170684,152.26,152.22,5.80410035]
[1751999504503,33.42,152.25,152.22,5.80410035]
[1751999504708,26.0,152.26,152.23,5.80410035]
[1751999504866,0.06,152.27,152.24,5.80410035]
[1751999505066,5.80410035,152.25,152.21,5.83410035]
[1751999505286,33.44,152.24,152.21,5.83410035]
[1751999506092,33.44,152.24,152.22,5.80410035]
[1751999506902,33.44,152.24,152.21,0.03]
[1751999507085,33.44,152.24,152.22,5.80410035]
[1751999508180,0.06,152.27,152.23,5.80410035]
[1751999508499,33.44,152.26,152.21,0.03]
[1751999508828,33.44,152.26,152.25,5.80410035]
[1751999509298,33.44,152.26,152.24,12.37262507]
[1751999509780,33.44,152.26,152.24,5.80410035]
[1751999510091,33.44,152.25,152.24,5.80410035]
[1751999510693,33.44,152.25,152.24,12.37267628]
[1751999512201,0.06,152.27,152.24,12.37267628]
[1751999512380,33.44,152.26,152.24,12.37267628]
[1751999513599,0.06,152.27,152.24,12.37267628]
[1751999513899,0.06,152.27,152.26,5.80410035]
[1751999514101,33.48,152.27,152.26,5.80410035]
[1751999514878,0.06,152.27,152.26,5.80410035]
[1751999515109,33.48,152.27,152.26,5.80410035]
[1751999515895,33.48,152.27,152.26,12.37181347]
[1751999518011,0.06,152.27,152.21,0.03]
[1751999518182,33.48,152.27,152.26,5.80410035]
[1751999518382,0.06,152.27,152.21,0.03]
[1751999518581,33.48,152.27,152.26,5.80410035]
[1751999519279,33.48,152.27,152.26,12.37181347]
[1751999519502,33.48,152.27,152.26,6.56771312]
[1751999519708,33.48,152.27,152.26,12.37181347]
[1751999520204,33.48,152.27,152.26,5.80410035]
[1751999521515,33.46,152.27,152.26,5.80410035]
[1751999521880,33.46,152.27,152.25,5.80410035]
[1751999522808,39.26410035,152.27,152.23,5.80410035]
[1751999523000,5.80410035,152.26,152.22,6.56943896]
[1751999523193,33.4,152.25,152.22,12.37353931]
[1751999524906,33.4,152.25,152.23,5.80410035]
[1751999526510,33.4,152.25,152.22,6.56943896]
[1751999526889,33.4,152.25,152.23,5.80410035]
[1751999527089,33.4,152.25,152.21,6.59987057]
[1751999527387,33.4,152.25,152.23,5.80410035]
[1751999528808,33.4,152.25,152.23,12.37298062]
[1751999530115,33.4,152.25,152.22,6.56938405]
[1751999530293,33.4,152.25,152.23,5.80410035]
[1751999531335,33.4,152.25,152.22,6.59938405]
[1751999531336,33.4,152.25,152.22,0.03]
[1751999531700,5.80410035,152.24,152.22,0.03]
[1751999532016,33.4,152.23,152.22,0.03]
[1751999532611,33.4,152.23,152.22,5.83410035]
[1751999533498,33.4,152.23,152.22,12.40353931]
[1751999533699,31.86410035,152.27,152.22,12.40353931]
[1751999533900,33.4,152.26,152.23,5.80410035]
[1751999534324,31.86410035,152.27,152.23,5.80410035]
[1751999534692,33.4,152.26,152.23,5.80410035]
[1751999535206,33.4,152.26,152.24,5.80410035]
[1751999535406,33.4,152.26,152.23,12.37272383]
[1751999535612,39.20410035,152.26,152.22,5.83410035]
[1751999536216,39.20410035,152.26,152.22,12.40335617]
[1751999536618,33.4,152.26,152.23,5.80410035]
[1751999537516,33.4,152.26,152.23,12.37301123]
[1751999538207,33.4,152.26,152.24,5.80410035]
[1751999538512,33.4,152.26,152.23,6.56891088]
[1751999538513,33.4,152.26,152.23,12.37301123]
[1751999539392,33.4,152.26,152.22,12.40341699]
[1751999542410,33.4,152.26,152.22,0.03]
[1751999542714,33.4,152.26,152.22,5.83410035]
[1751999543106,33.4,152.26,152.24,5.80410035]
[1751999543416,33.4,152.26,152.23,5.80410035]
[1751999545518,33.4,152.26,152.23,12.37308903]
[1751999545720,33.4,152.26,152.23,5.80410035]
[1751999545899,5.80410035,152.25,152.22,0.03]
[1751999546224,33.4,152.24,152.22,0.03]
[1751999546715,39.20410035,152.24,152.22,0.03]
[1751999547017,5.80410035,152.23,152.22,0.03]
[1751999547329,31.02275663,152.23,152.22,0.03]
[1751999552835,25.21865628,152.23,152.22,0.03]
[1751999553009,1.524,152.24,152.22,0.03]
[1751999553339,33.54,152.23,152.22,0.03]
[1751999553698,13.89682989,152.24,152.22,0.03]
[1751999553699,1.524,152.24,152.22,0.03]
[1751999553904,147.5,152.25,152.23,5.80410035]
[1751999554218,33.54,152.24,152.23,5.80410035]
[1751999556018,33.54,152.24,152.22,5.83410035]
[1751999558049,33.54,152.24,152.22,0.03]
[1751999558247,40.10861539,152.24,152.22,0.03]
[1751999558549,45.91271574,152.24,152.22,0.03]
[1751999560349,5.80410035,152.23,152.22,0.03]
[1751999561553,12.37310777,152.23,152.22,0.03]
[1751999561754,31.02275663,152.23,152.22,0.03]
[1751999562647,25.21865628,152.23,152.22,0.03]
[1751999562824,178.52275663,152.23,152.22,0.03]
[1751999569845,187.64900742,152.23,152.22,0.03]
[1751999570045,193.45310777,152.23,152.22,0.03]
[1751999570250,187.64900742,152.23,152.22,0.03]
[1751999570449,147.5,152.23,152.22,5.83410035]
[1751999570653,181.08,152.23,152.22,0.03]
[1751999571845,147.5,152.23,152.22,0.03]
[1751999572064,181.08,152.23,152.22,0.03]
[1751999572370,181.08,152.23,152.22,5.83410035]
[1751999572938,147.5,152.23,152.22,5.83410035]
[1751999573144,181.06,152.23,152.22,5.83410035]
[1751999574658,0.06,152.24,152.22,12.40353931]
[1751999574965,0.06,152.24,152.23,5.80410035]
[1751999575270,33.62,152.24,152.23,5.80410035]
[1751999576966,0.06,152.24,152.23,5.80410035]
[1751999577175,33.6,152.24,152.23,5.80410035]
[1751999577760,0.06,152.24,152.23,5.80410035]
[1751999579172,0.06,152.24,152.23,12.37310777]
[1751999579489,0.06,152.26,152.23,43.43789797]
[1751999579658,0.06,152.26,152.25,5.80410035]
[1751999579983,0.06,152.27,152.25,11.82220035]
[1751999580145,1e-08,152.27,152.26,6.08842349]
[1751999581079,1e-08,152.27,152.26,24.73807235]
[1751999581389,0.06,152.35,152.3,0.28432314]
[1751999581680,0.06,152.35,152.34,5.80410035]
[1751999582058,0.2,152.4,152.35,18.933972]
[1751999582250,0.2,152.4,152.39,5.80410035]
[1751999583378,0.2,152.4,152.35,26.0]
[1751999583548,39.54410035,152.4,152.31,16.4129857]
[1751999583756,5.80410035,152.39,152.35,5.80410035]
[1751999584266,5.80410035,152.38,152.34,5.80410035]
[1751999584462,33.54,152.37,152.34,5.80410035]
[1751999584648,33.54,152.37,152.35,5.80410035]
[1751999585046,33.54,152.37,152.32,6.56512605]
[1751999585250,33.54,152.37,152.35,5.80410035]
[1751999586656,33.52,152.37,152.35,5.80410035]
[1751999587581,0.2,152.4,152.36,5.80410035]
[1751999587792,33.52,152.39,152.32,12.65354954]
[1751999588993,33.52,152.39,152.38,5.80410035]
[1751999589577,33.52,152.39,152.37,5.80410035]
[1751999590891,33.52,152.39,152.38,5.80410035]
[1751999591091,33.52,152.39,152.33,6.56469506]
[1751999591266,33.52,152.39,152.38,5.80410035]
[1751999591593,33.52,152.39,152.37,5.80410035]
[1751999592793,33.52,152.39,152.38,5.80410035]
[1751999593092,33.52,152.39,152.33,6.56469506]
[1751999593294,33.52,152.39,152.38,5.80410035]
[1751999594297,33.52,152.39,152.37,5.80410035]
[1751999595696,33.58,152.39,152.37,5.80410035]
[1751999596196,33.58,152.39,152.33,6.56469506]
[1751999596382,33.58,152.39,152.37,5.80410035]
[1751999596886,45.9462466,152.39,152.34,5.80410035]
[1751999597090,5.80410035,152.38,152.33,5.80410035]
[1751999597274,72.86410035,152.37,152.33,5.80410035]
[1751999597873,67.06,152.37,152.33,5.80410035]
[1751999598087,67.06,152.36,152.31,22.97931749]
[1751999598282,67.06,152.36,152.35,5.80410035]
[1751999600101,33.52,152.37,152.35,12.36793362]
[1751999600286,33.52,152.37,152.36,5.80410035]
[1751999601176,0.06,152.39,152.36,5.80410035]
[1751999601376,33.52,152.37,152.33,6.56469506]
[1751999601690,33.52,152.37,152.36,5.80410035]
[1751999602392,33.5,152.38,152.36,12.36735476]
[1751999602597,0.06,152.39,152.37,5.80410035]
[1751999602795,0.06,152.39,152.38,5.80410035]
[1751999602998,33.56,152.39,152.38,5.80410035]
[1751999604600,0.06,152.39,152.38,5.80410035]
[1751999604774,33.56,152.39,152.38,5.80410035]
[1751999605503,33.56,152.39,152.33,16.41173767]
[1751999605703,33.56,152.39,152.36,5.80410035]
[1751999608105,45.92627821,152.39,152.35,5.80410035]
[1751999608677,5.80410035,152.37,152.32,6.56512605]
[1751999608877,67.0,152.36,152.33,5.80410035]
[1751999609103,67.0,152.35,152.34,5.80410035]
[1751999609682,67.0,152.35,152.31,22.97837873]
[1751999609989,67.0,152.35,152.34,5.80410035]
[1751999612585,67.0,152.35,152.34,12.36836449]
[1751999613284,67.0,152.35,152.34,5.80410035]
[1751999613610,67.0,152.35,152.34,12.36836449]
[1751999617729,33.48,152.36,152.34,12.39836449]
[1751999618025,33.48,152.37,152.35,5.80410035]
[1751999618317,33.48,152.38,152.36,12.36750281]
[1751999618485,0.06,152.39,152.37,5.80410035]
[1751999618690,0.06,152.39,152.38,5.80410035]
[1751999618890,33.54,152.39,152.38,5.80410035]
[1751999620191,33.54,152.39,152.38,12.36664136]
[1751999620391,33.52,152.39,152.38,12.36664136]
[1751999620910,0.06,152.39,152.38,5.80410035]
[1751999621223,0.06,152.39,152.38,12.36664136]
[1751999621224,33.54,152.39,152.38,12.36664136]
[1751999622127,33.54,152.39,152.38,6.56254101]
[1751999622287,33.54,152.39,152.34,16.44066036]
[1751999622492,33.54,152.39,152.38,5.80410035]
[1751999623115,0.06,152.39,152.38,5.80410035]
[1751999623324,33.52,152.39,152.38,5.80410035]
[1751999626900,33.52,152.39,152.38,12.36664136]
[1751999627128,0.06,152.39,152.38,12.36664136]
[1751999627317,33.54,152.39,152.38,12.36664136]
[1751999627515,0.06,152.39,152.38,12.36664136]
[1751999632026,66.98,152.39,152.37,5.80410035]
[1751999632805,66.98,152.39,152.36,6.56340246]
[1751999632999,66.98,152.39,152.37,5.80410035]
[1751999635503,66.98,152.39,152.36,5.80410035]
[1751999636412,66.98,152.39,152.35,6.56376197]
[1751999636619,66.98,152.39,152.36,5.80410035]
[1751999636843,5.80410035,152.37,152.34,0.03]
[1751999637004,72.70410035,152.36,152.34,0.03]
[1751999638512,66.9,152.36,152.34,0.03]
[1751999640106,79.26762158,152.36,152.34,0.03]
[1751999640327,5.80410035,152.35,152.34,0.03]
[1751999640912,31.01758248,152.35,152.34,0.03]
[1751999641335,31.30190562,152.35,152.34,0.03]
[1751999643513,25.49780527,152.35,152.34,0.03]
[1751999643718,178.80190562,152.35,152.34,0.03]
[1751999643916,18.64964886,152.31,152.26,5.80410035]
[1751999644126,72.76410035,152.3,152.25,6.59796884]
[1751999644450,66.96,152.3,152.26,5.80410035]
[1751999644823,66.96,152.3,152.27,5.80410035]
[1751999645417,6.56475339,152.33,152.29,5.80410035]
[1751999645629,66.94,152.32,152.28,5.80410035]
[1751999645837,72.74410035,152.32,152.28,5.80410035]
[1751999647648,26.0,152.29,152.28,12.3708776]
[1751999647944,92.94,152.29,152.28,12.3708776]
[1751999648448,92.94,152.29,152.28,5.80410035]
[1751999649146,92.94,152.29,152.28,12.37095088]
[1751999650248,59.46,152.29,152.28,12.37095088]
[1751999650833,26.0,152.32,152.28,12.37095088]
[1751999651044,26.0,152.29,152.28,6.56685053]
[1751999651243,59.46,152.29,152.28,12.37095088]
[1751999651747,59.46,152.29,152.28,6.56685053]
[1751999651955,59.46,152.29,152.25,0.03]
[1751999652132,59.46,152.29,152.27,5.80410035]
[1751999653342,59.46,152.29,152.28,6.56685053]
[1751999653916,59.46,152.29,152.28,12.37095088]
[1751999654144,155.84772314,152.35,152.28,12.37095088]
[1751999654145,161.36750035,152.35,152.28,12.37095088]
[1751999654353,39.26410035,152.34,152.28,6.56685053]
[1751999654525,39.26410035,152.34,152.29,5.80410035]
[1751999655219,39.26410035,152.34,152.29,12.37011582]
[1751999656431,39.26410035,152.34,152.3,5.80410035]
[1751999659555,39.26410035,152.34,152.3,6.56568928]
[1751999659728,39.26410035,152.34,152.3,12.36978963]
[1751999661948,39.26410035,152.34,152.26,16.41924494]
[1751999662156,33.46,152.34,152.31,5.80410035]
[1751999662450,39.26410035,152.34,152.3,5.80410035]
[1751999663352,39.26410035,152.34,152.29,5.80410035]
[1751999663655,39.26410035,152.34,152.3,5.80410035]
[1751999663839,39.26410035,152.34,152.3,5.83410035]
[1751999664544,39.26410035,152.34,152.3,12.40008671]
[1751999664738,26.0,152.32,152.3,0.03]
[1751999664944,72.66410035,152.31,152.3,0.03]
[1751999667463,66.86,152.31,152.3,0.03]
[1751999668665,66.86,152.31,152.3,5.83410035]
[1751999669334,147.5,152.35,152.3,5.83410035]
[1751999669551,0.06,152.37,152.33,5.80410035]
[1751999669836,0.06,152.37,152.35,5.80410035]
[1751999670058,0.06,152.37,152.36,5.80410035]
[1751999670361,33.5,152.37,152.36,5.80410035]
[1751999670733,0.06,152.37,152.36,5.80410035]
[1751999670936,0.06,152.37,152.31,22.97944979]
[1751999671159,0.06,152.37,152.36,5.80410035]
[1751999671669,0.06,152.37,152.32,0.28432314]
[1751999671841,0.06,152.37,152.35,5.80410035]
[1751999673149,33.44,152.36,152.35,5.80410035]
[1751999673864,33.44,152.36,152.35,12.36793362]
[1751999674363,0.06,152.37,152.35,12.36793362]
[1751999674666,33.44,152.36,152.35,12.36793362]
[1751999682781,33.44,152.36,152.31,16.41388664]
[1751999683069,33.44,152.36,152.34,5.80410035]
[1751999684273,33.44,152.36,152.34,12.36818013]
[1751999685476,33.44,152.36,152.33,12.368593]
[1751999685653,33.44,152.36,152.33,6.56449265]
[1751999685971,33.44,152.36,152.34,0.03]
[1751999689004,33.44,152.36,152.34,5.83410035]
[1751999690584,33.44,152.36,152.34,0.03]
[1751999690753,33.44,152.36,152.34,5.83410035]
[1751999691280,33.44,152.36,152.34,12.3982214]
[1751999691763,33.44,152.36,152.35,5.80410035]
[1751999691964,33.42,152.36,152.35,5.80410035]
[1751999692360,0.06,152.37,152.35,5.80410035]
[1751999692562,0.06,152.37,152.36,5.80410035]
[1751999692764,33.48,152.37,152.36,5.80410035]
[1751999693363,33.48,152.37,152.36,12.36750281]
[1751999695865,33.48,152.37,152.36,6.56340246]
[1751999696066,33.48,152.37,152.36,12.36750281]
[1751999696973,0.06,152.37,152.36,12.36750281]
[1751999697179,33.48,152.37,152.36,6.56340246]
[1751999697382,33.48,152.37,152.36,12.36750281]
[1751999701281,0.06,152.37,152.36,12.36750281]
[1751999701665,0.06,152.37,152.36,6.56340246]
[1751999701984,0.06,152.37,152.36,12.36750281]
[1751999702386,33.48,152.37,152.36,12.36750281]
[1751999703670,0.06,152.37,152.36,12.36750281]
[1751999703866,33.48,152.37,152.36,12.36750281]
[1751999704472,0.06,152.37,152.36,12.36750281]
[1751999705059,0.06,152.37,152.36,12.65182595]
[1751999711202,0.06,152.37,152.36,6.8477256]
[1751999711383,0.06,152.37,152.36,12.65182595]
[1751999717411,0.06,152.39,152.36,28.77600897]
[1751999717698,0.06,152.39,152.37,5.80410035]
[1751999717908,0.06,152.39,152.36,6.56340246]
[1751999718085,0.06,152.39,152.37,5.80410035]
[1751999718799,0.06,152.39,152.36,6.56340246]
[1751999719028,0.06,152.39,152.37,5.80410035]
[1751999719588,0.06,152.39,152.37,6.56284205]
[1751999719802,39.20410035,152.38,152.35,6.56381287]
[1751999720111,5.80410035,152.37,152.34,0.03]
[1751999720911,39.20410035,152.38,152.34,5.83410035]
[1751999724528,33.4,152.38,152.35,6.56383327]
[1751999724806,33.46,152.39,152.35,12.36793362]
[1751999725014,39.26410035,152.39,152.35,12.36793362]
[1751999725196,39.26410035,152.39,152.35,6.56383327]
[1751999725514,39.26410035,152.39,152.35,12.36793362]
[1751999725909,33.46,152.39,152.35,12.36793362]
[1751999726717,33.4,152.38,152.35,12.36793362]
[1751999727214,0.06,152.39,152.35,12.36793362]
[1751999727515,33.4,152.38,152.35,12.36793362]
[1751999728208,33.46,152.38,152.35,12.36793362]
[1751999729203,33.46,152.38,152.36,5.80410035]
[1751999730015,33.46,152.38,152.35,12.36793362]
[1751999731796,33.46,152.38,152.36,5.80410035]
[1751999732824,33.46,152.38,152.37,6.56297171]
[1751999733514,0.06,152.38,152.37,12.36707206]
[1751999736820,0.06,152.38,152.37,12.6513952]
[1751999737430,0.06,152.39,152.37,12.6513952]
[1751999737607,0.06,152.39,152.38,5.80410035]
[1751999738227,0.06,152.39,152.38,12.36664136]
[1751999743931,0.06,152.39,152.38,12.6509645]
[1751999746107,0.2,152.4,152.39,18.933972]
[1751999746309,1e-08,152.4,152.39,56.5421727]
[1751999746502,1e-08,152.41,152.39,50.73807235]
[1751999746709,1e-08,152.41,152.4,6.08842349]
[1751999748229,1e-08,152.41,152.4,12.65010328]
[1751999749728,1e-08,152.41,152.4,16.00247354]
[1751999750718,1e-08,152.42,152.41,18.933972]
[1751999750934,1e-08,152.43,152.41,18.933972]
[1751999750935,5.1128218,152.48,152.44,26.0]
[1751999751111,5.1128218,152.48,152.47,11.6082007]
[1751999751439,1e-08,152.48,152.47,11.6082007]
[1751999751607,1e-08,152.48,152.47,11.89252384]
[1751999751812,1e-08,152.48,152.47,30.5421727]
[1751999752026,0.2,152.54,152.49,18.933972]
[1751999752339,0.2,152.54,152.53,12.36018767]
[1751999753162,0.2,152.54,152.51,6.55694708]
[1751999753469,0.2,152.54,152.53,5.80410035]
[1751999754024,0.2,152.54,152.51,6.55694708]
[1751999754458,0.2,152.54,152.53,5.80410035]
[1751999756585,0.2,152.54,152.53,12.36018767]
[1751999756767,0.1,152.57,152.54,18.933972]
[1751999757061,0.1,152.57,152.56,11.89252384]
[1751999757754,0.1,152.57,152.56,6.08842349]